[Event "*** MasterClass Titled Tuesday Blitz"]
[Site "Chess.com"]
[Date "2017.08.01"]
[Round "5"]
[White "HouseOfDurin"]
[Black "matej2221"]
[Result "1/2-1/2"]
[WhiteElo "1865"]
[BlackElo "2253"]
[TimeControl "180+2"]
[EndTime "14:04:41 PDT"]
[Termination "Game drawn by agreement"]

1. d4 {[%clk 0:02:54.7]} 1... d5 {[%clk 0:02:58.7]} 2. c4 {[%clk 0:02:51.3]}
2... c6 {[%clk 0:02:58.1]} 3. Nc3 {[%clk 0:02:50.9]} 3... Nf6 {[%clk 0:02:53.9]}
4. Bg5 {[%clk 0:02:47.2]} 4... a6 {[%clk 0:02:19.4]} 5. Bxf6 {[%clk 0:02:45.9]}
5... gxf6 {[%clk 0:02:08.9]} 6. cxd5 {[%clk 0:02:46.8]} 6... cxd5 {[%clk
0:02:09.7]} 7. g3 {[%clk 0:02:45.8]} 7... Bg7 {[%clk 0:02:07.7]} 8. Bg2 {[%clk
0:02:46.7]} 8... e6 {[%clk 0:02:09.1]} 9. e3 {[%clk 0:02:41]} 9... O-O {[%clk
0:02:10.2]} 10. Nge2 {[%clk 0:02:40.5]} 10... Nc6 {[%clk 0:02:11.4]} 11. O-O
{[%clk 0:02:39.7]} 11... b5 {[%clk 0:02:08.5]} 12. a3 {[%clk 0:02:39.7]} 12...
Bb7 {[%clk 0:02:09.8]} 13. Nf4 {[%clk 0:02:39.8]} 13... Kh8 {[%clk 0:01:55.1]}
14. Nh5 {[%clk 0:02:31.4]} 14... Rg8 {[%clk 0:01:55.4]} 15. Nxg7 {[%clk
0:02:31.6]} 15... Rxg7 {[%clk 0:01:55.8]} 16. Qh5 {[%clk 0:01:47.8]} 16... f5
{[%clk 0:01:49.9]} 17. Rac1 {[%clk 0:01:38.7]} 17... Ne7 {[%clk 0:01:28]} 18.
Ne2 {[%clk 0:01:18.9]} 18... Ng8 {[%clk 0:01:24]} 19. Rc2 {[%clk 0:01:12.1]}
19... Rc8 {[%clk 0:01:21.3]} 20. Rfc1 {[%clk 0:01:12.5]} 20... Rxc2 {[%clk
0:01:18.7]} 21. Rxc2 {[%clk 0:01:14.4]} 21... Nf6 {[%clk 0:01:18.6]} 22. Qh4
{[%clk 0:01:09.3]} 22... Rg4 {[%clk 0:01:11.2]} 23. Qh6 {[%clk 0:01:05.3]} 23...
Rg6 {[%clk 0:01:09.4]} 24. Qf4 {[%clk 0:01:00]} 24... Ne8 {[%clk 0:01:06.6]} 25.
Qe5+ {[%clk 0:00:49.2]} 25... Qf6 {[%clk 0:00:56.2]} 26. Qb8 {[%clk 0:00:46.3]}
26... Qe7 {[%clk 0:00:51.6]} 27. Nf4 {[%clk 0:00:29]} 27... Rg8 {[%clk
0:00:52.5]} 28. Nd3 {[%clk 0:00:29.1]} 28... Nd6 {[%clk 0:00:36]} 29. Qc7 {[%clk
0:00:26]} 29... Re8 {[%clk 0:00:37]} 30. Ne5 {[%clk 0:00:24.1]} 30... Kg7 {[%clk
0:00:35.4]} 31. b3 {[%clk 0:00:15.9]} 31... Ne4 {[%clk 0:00:35.4]} 32. Qb6
{[%clk 0:00:11.6]} 32... Rc8 {[%clk 0:00:24.7]} 33. Rxc8 {[%clk 0:00:09]} 33...
Bxc8 {[%clk 0:00:26.6]} 34. Nc6 {[%clk 0:00:07.7]} 34... Qb7 {[%clk 0:00:20.7]}
35. Qxb7 {[%clk 0:00:07.1]} 35... Bxb7 {[%clk 0:00:22.6]} 36. Bxe4 {[%clk
0:00:07.2]} 36... Bxc6 {[%clk 0:00:21.3]} 37. Bd3 {[%clk 0:00:07.7]} 37... Kf6
{[%clk 0:00:21.5]} 38. Kf1 {[%clk 0:00:08.9]} 38... Ke7 {[%clk 0:00:22.7]} 39.
f4 {[%clk 0:00:10]} 39... Kd6 {[%clk 0:00:15.9]} 40. b4 {[%clk 0:00:11.4]} 40...
Ke7 {[%clk 0:00:16]} 41. Kf2 {[%clk 0:00:13]} 41... Kf6 {[%clk 0:00:17.1]} 42.
h3 {[%clk 0:00:14.3]} 42... h5 {[%clk 0:00:17.2]} 43. Be2 {[%clk 0:00:15.1]}
43... Kg6 {[%clk 0:00:18.4]} 44. Kf3 {[%clk 0:00:15.8]} 44... Kh6 {[%clk
0:00:18.8]} 45. Kf2 {[%clk 0:00:17.1]} 45... Kg6 {[%clk 0:00:19.8]} 46. Ke1
{[%clk 0:00:18.3]} 46... Kh6 {[%clk 0:00:20.5]} 47. Kf2 {[%clk 0:00:19.4]} 47...
Kg6 {[%clk 0:00:21.5]} 48. Ke1 {[%clk 0:00:20.4]} 1/2-1/2

[Event "*** MasterClass Titled Tuesday Blitz"]
[Site "Chess.com"]
[Date "2017.08.01"]
[Round "5"]
[White "Witik"]
[Black "GrigorGrigorov"]
[Result "1-0"]
[WhiteElo "2591"]
[BlackElo "2609"]
[TimeControl "180+2"]
[EndTime "14:05:22 PDT"]
[Termination "Witik won by resignation"]

1. d4 {[%clk 0:03:01.9]} 1... Nf6 {[%clk 0:02:59.3]} 2. Bf4 {[%clk 0:03:02.8]}
2... e6 {[%clk 0:02:59.3]} 3. e3 {[%clk 0:03:03.8]} 3... d5 {[%clk 0:03:00.3]}
4. Nd2 {[%clk 0:03:04.5]} 4... Bd6 {[%clk 0:03:01.1]} 5. Bd3 {[%clk 0:03:05.1]}
5... Bxf4 {[%clk 0:02:56.2]} 6. exf4 {[%clk 0:03:06]} 6... c5 {[%clk 0:02:53.1]}
7. dxc5 {[%clk 0:02:55.5]} 7... Qc7 {[%clk 0:02:54.1]} 8. Ngf3 {[%clk
0:02:48.6]} 8... Qxf4 {[%clk 0:02:47.9]} 9. O-O {[%clk 0:02:45.7]} 9... O-O
{[%clk 0:02:48.4]} 10. Qe2 {[%clk 0:02:39.2]} 10... Nbd7 {[%clk 0:02:45.5]} 11.
Nb3 {[%clk 0:02:35.9]} 11... Qc7 {[%clk 0:02:40.1]} 12. Qe3 {[%clk 0:02:13.7]}
12... e5 {[%clk 0:02:37.8]} 13. Bf5 {[%clk 0:02:10.4]} 13... Re8 {[%clk
0:02:14.9]} 14. Rfe1 {[%clk 0:02:00.9]} 14... e4 {[%clk 0:02:01.5]} 15. Nfd4
{[%clk 0:01:52.8]} 15... Ne5 {[%clk 0:01:56.8]} 16. Qg3 {[%clk 0:01:47.5]} 16...
Qe7 {[%clk 0:01:35.8]} 17. Bxc8 {[%clk 0:01:43]} 17... Raxc8 {[%clk 0:01:34.9]}
18. Nf5 {[%clk 0:01:44.2]} 18... Qf8 {[%clk 0:01:35.7]} 19. Nd6 {[%clk
0:01:43.1]} 19... Nc4 {[%clk 0:01:36.1]} 20. Nxe8 {[%clk 0:01:36.8]} 20... Rxe8
{[%clk 0:01:35.1]} 21. Rab1 {[%clk 0:01:27.1]} 21... h5 {[%clk 0:01:34.3]} 22.
c3 {[%clk 0:01:24.1]} 22... Ne5 {[%clk 0:01:11.6]} 23. Rbd1 {[%clk 0:01:17]}
23... Nd3 {[%clk 0:01:07.7]} 24. Rxd3 {[%clk 0:01:15.1]} 24... exd3 {[%clk
0:01:08.5]} 25. Rxe8 {[%clk 0:01:15.8]} 25... Qxe8 {[%clk 0:01:10]} 26. Qxd3
{[%clk 0:01:14.1]} 26... Qe1+ {[%clk 0:00:57.7]} 27. Qf1 {[%clk 0:01:14.4]}
27... Qe7 {[%clk 0:00:58.7]} 28. h3 {[%clk 0:01:07.3]} 28... Ne4 {[%clk
0:00:59.1]} 29. Qd1 {[%clk 0:00:59.2]} 29... Nxc5 {[%clk 0:00:58.8]} 30. Nxc5
{[%clk 0:00:55.2]} 30... Qxc5 {[%clk 0:00:58.7]} 31. Qxh5 {[%clk 0:00:56.7]}
31... Qc4 {[%clk 0:00:51.7]} 32. a3 {[%clk 0:00:52.6]} 32... Qd3 {[%clk
0:00:48]} 33. Kh2 {[%clk 0:00:40.5]} 33... Qd2 {[%clk 0:00:48.6]} 34. Qe5 {[%clk
0:00:32.7]} 34... Qxf2 {[%clk 0:00:37.3]} 35. Qxd5 {[%clk 0:00:29.4]} 35... Qxb2
{[%clk 0:00:35.6]} 36. Qd8+ {[%clk 0:00:28.1]} 36... Kh7 {[%clk 0:00:36.6]} 37.
Qh4+ {[%clk 0:00:28.6]} 37... Kg6 {[%clk 0:00:35.9]} 38. Qg4+ {[%clk 0:00:25.1]}
38... Kh7 {[%clk 0:00:33.5]} 39. Qb4 {[%clk 0:00:22.2]} 39... Qxb4 {[%clk
0:00:18.2]} 40. axb4 {[%clk 0:00:20.8]} 40... Kg6 {[%clk 0:00:14.1]} 41. Kg3
{[%clk 0:00:22.3]} 41... Kf5 {[%clk 0:00:15]} 42. Kf3 {[%clk 0:00:23.2]} 42...
Ke5 {[%clk 0:00:15]} 43. Ke3 {[%clk 0:00:24.6]} 43... b6 {[%clk 0:00:15.1]} 44.
b5 {[%clk 0:00:23.9]} 44... Kd5 {[%clk 0:00:15.6]} 45. Kd3 {[%clk 0:00:25.1]}
45... Kc5 {[%clk 0:00:14.7]} 46. c4 {[%clk 0:00:24.8]} 46... f5 {[%clk
0:00:05.3]} 47. h4 {[%clk 0:00:23.2]} 47... g6 {[%clk 0:00:06.4]} 48. Kc3 {[%clk
0:00:22.2]} 48... Kd6 {[%clk 0:00:06]} 49. Kd4 {[%clk 0:00:23.5]} 49... Ke6
{[%clk 0:00:06.6]} 50. Ke3 {[%clk 0:00:18.1]} 50... Ke5 {[%clk 0:00:06.8]} 51.
Kf3 {[%clk 0:00:13.8]} 51... Kd4 {[%clk 0:00:06.9]} 52. Kf4 {[%clk 0:00:13.4]}
52... Kxc4 {[%clk 0:00:08.5]} 53. Kg5 {[%clk 0:00:14.4]} 53... Kxb5 {[%clk
0:00:09.9]} 54. Kxg6 {[%clk 0:00:14.6]} 54... a5 {[%clk 0:00:11.8]} 55. h5
{[%clk 0:00:15.5]} 55... a4 {[%clk 0:00:13.7]} 56. h6 {[%clk 0:00:17.4]} 56...
a3 {[%clk 0:00:15.6]} 57. h7 {[%clk 0:00:19]} 57... a2 {[%clk 0:00:17.5]} 58.
h8=Q {[%clk 0:00:20.6]} 58... Kc4 {[%clk 0:00:18.9]} 59. Qb2 {[%clk 0:00:21.8]}
1-0

[Event "*** MasterClass Titled Tuesday Blitz"]
[Site "Chess.com"]
[Date "2017.08.01"]
[Round "5"]
[White "AdrianaNikolova"]
[Black "ruvat"]
[Result "1-0"]
[WhiteElo "2291"]
[BlackElo "2282"]
[TimeControl "180+2"]
[EndTime "14:05:24 PDT"]
[Termination "AdrianaNikolova won on time"]

1. e4 {[%clk 0:03:01.9]} 1... d6 {[%clk 0:03:00.7]} 2. d4 {[%clk 0:03:01.5]}
2... Nf6 {[%clk 0:03:01.5]} 3. Nc3 {[%clk 0:03:02.7]} 3... g6 {[%clk 0:03:02.6]}
4. h3 {[%clk 0:03:03.9]} 4... Bg7 {[%clk 0:03:03.4]} 5. Be3 {[%clk 0:03:05]}
5... c6 {[%clk 0:03:01.2]} 6. a4 {[%clk 0:03:05.5]} 6... O-O {[%clk 0:03:00.3]}
7. Nge2 {[%clk 0:03:06.5]} 7... b6 {[%clk 0:02:57.7]} 8. g4 {[%clk 0:03:07]}
8... Bb7 {[%clk 0:02:58]} 9. Bg2 {[%clk 0:03:08.2]} 9... Nbd7 {[%clk 0:02:56]}
10. O-O {[%clk 0:03:09.2]} 10... e5 {[%clk 0:02:48.5]} 11. Ng3 {[%clk
0:03:07.5]} 11... a6 {[%clk 0:02:45.8]} 12. f4 {[%clk 0:03:02.8]} 12... Qc7
{[%clk 0:02:27.2]} 13. g5 {[%clk 0:03:01.7]} 13... Ne8 {[%clk 0:02:27.1]} 14. f5
{[%clk 0:03:03]} 14... f6 {[%clk 0:02:26.5]} 15. fxg6 {[%clk 0:03:02.6]} 15...
hxg6 {[%clk 0:02:26.6]} 16. dxe5 {[%clk 0:03:04]} 16... fxe5 {[%clk 0:02:20.1]}
17. Rxf8+ {[%clk 0:03:03]} 17... Nxf8 {[%clk 0:02:20.9]} 18. Qd2 {[%clk
0:02:58.9]} 18... b5 {[%clk 0:02:17.6]} 19. axb5 {[%clk 0:02:58.5]} 19... axb5
{[%clk 0:02:18.1]} 20. Rf1 {[%clk 0:02:59]} 20... b4 {[%clk 0:02:14]} 21. Nce2
{[%clk 0:02:59.7]} 21... c5 {[%clk 0:01:59.8]} 22. h4 {[%clk 0:02:59.6]} 22...
Qe7 {[%clk 0:01:31.2]} 23. h5 {[%clk 0:02:59.8]} 23... gxh5 {[%clk 0:01:26.5]}
24. Nxh5 {[%clk 0:02:59.2]} 24... Ng6 {[%clk 0:01:25.8]} 25. Neg3 {[%clk
0:02:57.1]} 25... Nf4 {[%clk 0:01:15.1]} 26. Nxg7 {[%clk 0:02:51.2]} 26... Nxg7
{[%clk 0:01:10.8]} 27. Bxf4 {[%clk 0:02:52.4]} 27... exf4 {[%clk 0:01:11]} 28.
Qxf4 {[%clk 0:02:52.7]} 28... Rf8 {[%clk 0:01:05.7]} 29. Qg4 {[%clk 0:02:48]}
29... Rxf1+ {[%clk 0:00:58.4]} 30. Bxf1 {[%clk 0:02:49.9]} 30... Qe5 {[%clk
0:00:49.9]} 31. Bc4+ {[%clk 0:02:48.7]} 31... d5 {[%clk 0:00:37.4]} 32. exd5
{[%clk 0:02:20.9]} 32... Bxd5 {[%clk 0:00:39.3]} 33. Qc8+ {[%clk 0:02:02.2]}
33... Kf7 {[%clk 0:00:25.5]} 34. Qd7+ {[%clk 0:01:39.3]} 34... Kf8 {[%clk
0:00:22.4]} 35. Qd8+ {[%clk 0:01:01.1]} 35... Ne8 {[%clk 0:00:22.8]} 36. Qxd5
{[%clk 0:01:01.2]} 36... Qxg3+ {[%clk 0:00:22.9]} 37. Qg2 {[%clk 0:01:01.4]}
37... Qe1+ {[%clk 0:00:13.8]} 38. Qf1+ {[%clk 0:01:01.6]} 38... Qxf1+ {[%clk
0:00:14.3]} 39. Kxf1 {[%clk 0:01:03.5]} 39... Nd6 {[%clk 0:00:15.5]} 40. Bd3
{[%clk 0:00:42]} 40... c4 {[%clk 0:00:15.6]} 41. Be2 {[%clk 0:00:42.2]} 41...
Kg7 {[%clk 0:00:16.9]} 42. Kf2 {[%clk 0:00:32.9]} 42... Kg6 {[%clk 0:00:13.4]}
43. Ke3 {[%clk 0:00:34]} 43... Kxg5 {[%clk 0:00:14.2]} 44. Kd4 {[%clk
0:00:35.3]} 44... Kf6 {[%clk 0:00:10.2]} 45. Bxc4 {[%clk 0:00:35.7]} 45... Ke7
{[%clk 0:00:10.5]} 46. Kc5 {[%clk 0:00:34.9]} 46... b3 {[%clk 0:00:10.6]} 47.
Bxb3 {[%clk 0:00:35.4]} 47... Ne4+ {[%clk 0:00:10.7]} 48. Kd4 {[%clk 0:00:36.3]}
48... Nd6 {[%clk 0:00:10.6]} 49. c4 {[%clk 0:00:37.8]} 49... Kd7 {[%clk
0:00:10.5]} 50. Kd5 {[%clk 0:00:37]} 50... Kc7 {[%clk 0:00:10.8]} 51. c5 {[%clk
0:00:37.9]} 51... Nb5 {[%clk 0:00:11.2]} 52. Ba4 {[%clk 0:00:38.6]} 52... Na7
{[%clk 0:00:10.5]} 53. b4 {[%clk 0:00:38.5]} 53... Nc8 {[%clk 0:00:11.1]} 54. b5
{[%clk 0:00:39.7]} 54... Ne7+ {[%clk 0:00:12.4]} 55. Ke6 {[%clk 0:00:40.8]}
55... Nc8 {[%clk 0:00:12.2]} 56. Bc2 {[%clk 0:00:40.4]} 56... Kb7 {[%clk
0:00:08.6]} 57. Be4+ {[%clk 0:00:39.3]} 57... Kc7 {[%clk 0:00:08.2]} 58. Bf3
{[%clk 0:00:40.3]} 58... Kb8 {[%clk 0:00:07.1]} 59. b6 {[%clk 0:00:35.6]} 1-0

[Event "*** MasterClass Titled Tuesday Blitz"]
[Site "Chess.com"]
[Date "2017.08.01"]
[Round "5"]
[White "vellottiwizard"]
[Black "ehrenfeld"]
[Result "1-0"]
[WhiteElo "2529"]
[BlackElo "2400"]
[TimeControl "180+2"]
[EndTime "14:05:27 PDT"]
[Termination "vellottiwizard won by resignation"]

1. e4 {[%clk 0:03:02]} 1... d6 {[%clk 0:02:59]} 2. d4 {[%clk 0:03:02.4]} 2... g6
{[%clk 0:03:00.1]} 3. Nc3 {[%clk 0:03:03]} 3... Bg7 {[%clk 0:03:01.1]} 4. Nf3
{[%clk 0:03:02.5]} 4... Nf6 {[%clk 0:03:01.3]} 5. Be2 {[%clk 0:03:04.3]} 5...
O-O {[%clk 0:03:01.2]} 6. O-O {[%clk 0:03:06]} 6... e6 {[%clk 0:03:02.5]} 7. Re1
{[%clk 0:03:04.2]} 7... Nc6 {[%clk 0:03:03.4]} 8. h3 {[%clk 0:02:47.2]} 8... b6
{[%clk 0:03:03.9]} 9. Be3 {[%clk 0:02:47.9]} 9... Bb7 {[%clk 0:03:03.3]} 10. Qd2
{[%clk 0:02:48.8]} 10... Ne7 {[%clk 0:03:03.2]} 11. Bd3 {[%clk 0:02:49.5]} 11...
c5 {[%clk 0:02:49.1]} 12. Bh6 {[%clk 0:02:44]} 12... cxd4 {[%clk 0:02:48.1]} 13.
Nxd4 {[%clk 0:02:45.9]} 13... a6 {[%clk 0:02:43.3]} 14. Bxg7 {[%clk 0:02:45.7]}
14... Kxg7 {[%clk 0:02:43.9]} 15. Rad1 {[%clk 0:02:47.7]} 15... Qc7 {[%clk
0:02:44.5]} 16. Bf1 {[%clk 0:02:40.2]} 16... Rfd8 {[%clk 0:02:38.7]} 17. f3
{[%clk 0:02:28.9]} 17... Rac8 {[%clk 0:02:37.7]} 18. Qf2 {[%clk 0:02:26.1]}
18... b5 {[%clk 0:02:32.5]} 19. a3 {[%clk 0:02:27.4]} 19... e5 {[%clk 0:02:30]}
20. Nb3 {[%clk 0:02:28.1]} 20... d5 {[%clk 0:02:28.2]} 21. exd5 {[%clk
0:02:29.1]} 21... Nexd5 {[%clk 0:02:29]} 22. Nxd5 {[%clk 0:02:28.7]} 22... Nxd5
{[%clk 0:02:29.7]} 23. Rd2 {[%clk 0:02:29]} 23... Nf4 {[%clk 0:02:10.2]} 24.
Red1 {[%clk 0:02:25.9]} 24... Rxd2 {[%clk 0:02:09.6]} 25. Rxd2 {[%clk
0:02:27.8]} 25... h5 {[%clk 0:01:59.6]} 26. h4 {[%clk 0:02:04.5]} 26... Ne6
{[%clk 0:01:51.9]} 27. Qe3 {[%clk 0:02:02.2]} 27... Re8 {[%clk 0:01:21.2]} 28.
c3 {[%clk 0:01:51.9]} 28... Re7 {[%clk 0:01:21.2]} 29. Nc1 {[%clk 0:01:50]}
29... Nf4 {[%clk 0:01:07.2]} 30. Nd3 {[%clk 0:01:48.4]} 30... Nd5 {[%clk
0:01:05.9]} 31. Qf2 {[%clk 0:01:48.6]} 31... e4 {[%clk 0:01:00]} 32. fxe4 {[%clk
0:01:48.8]} 32... Rxe4 {[%clk 0:01:01.2]} 33. Re2 {[%clk 0:01:49.1]} 33... Nf6
{[%clk 0:00:48.6]} 34. Rxe4 {[%clk 0:01:44.3]} 34... Nxe4 {[%clk 0:00:49]} 35.
Qd4+ {[%clk 0:01:45]} 35... Kh7 {[%clk 0:00:49.9]} 36. Ne5 {[%clk 0:01:42.6]}
36... Qe7 {[%clk 0:00:39.5]} 37. Nf3 {[%clk 0:01:27.7]} 37... Qc5 {[%clk
0:00:25.7]} 38. Bd3 {[%clk 0:01:19]} 38... Qxd4+ {[%clk 0:00:26.2]} 39. Nxd4
{[%clk 0:01:21]} 39... Kg7 {[%clk 0:00:24.8]} 40. Bxe4 {[%clk 0:01:19.8]} 40...
Bxe4 {[%clk 0:00:25.3]} 41. g3 {[%clk 0:01:21.7]} 41... Kf6 {[%clk 0:00:25.7]}
42. Kf2 {[%clk 0:01:22.9]} 42... Ke5 {[%clk 0:00:26.1]} 43. Ke3 {[%clk
0:01:24.5]} 43... Bd5 {[%clk 0:00:26.2]} 44. Nc2 {[%clk 0:01:21]} 44... f6
{[%clk 0:00:25.3]} 45. Nb4 {[%clk 0:01:22]} 45... Bb7 {[%clk 0:00:26]} 46. Nd3+
{[%clk 0:01:23.1]} 46... Kf5 {[%clk 0:00:25]} 47. Nc5 {[%clk 0:01:21]} 47... Bc8
{[%clk 0:00:25.1]} 48. Ne4 {[%clk 0:01:18.1]} 48... Kg4 {[%clk 0:00:22.8]} 49.
Kf2 {[%clk 0:01:17.5]} 49... f5 {[%clk 0:00:21.4]} 50. Nf6+ {[%clk 0:01:16.2]}
50... Kh3 {[%clk 0:00:22.2]} 51. Nd5 {[%clk 0:01:18.1]} 51... Bb7 {[%clk
0:00:20.1]} 52. Nf4+ {[%clk 0:01:18.7]} 52... Kg4 {[%clk 0:00:21]} 53. Nxg6
{[%clk 0:01:20.6]} 53... Be4 {[%clk 0:00:20.5]} 54. Nf4 {[%clk 0:01:19.1]} 54...
a5 {[%clk 0:00:21.5]} 55. b4 {[%clk 0:01:02.5]} 55... a4 {[%clk 0:00:22.4]} 56.
Ng6 {[%clk 0:00:52.8]} 56... Kh3 {[%clk 0:00:18.5]} 57. Nf4+ {[%clk 0:00:42]}
57... Kg4 {[%clk 0:00:18]} 58. Ne2 {[%clk 0:00:43.4]} 58... Bd3 {[%clk 0:00:18]}
59. Nd4 {[%clk 0:00:34.1]} 59... Bc4 {[%clk 0:00:18]} 60. Nf3 {[%clk 0:00:33.5]}
60... Bd5 {[%clk 0:00:13.4]} 61. Ne5+ {[%clk 0:00:29.5]} 61... Kh3 {[%clk
0:00:14.1]} 62. Ng6 {[%clk 0:00:28.5]} 62... Kg4 {[%clk 0:00:13.9]} 63. Nf4
{[%clk 0:00:29.7]} 63... Bc4 {[%clk 0:00:14.6]} 64. Ng2 {[%clk 0:00:30.7]} 64...
Bd5 {[%clk 0:00:14.9]} 65. Ne3+ {[%clk 0:00:32]} 1-0

[Event "*** MasterClass Titled Tuesday Blitz"]
[Site "Chess.com"]
[Date "2017.08.01"]
[Round "5"]
[White "GMMarcinDziuba"]
[Black "Jospem"]
[Result "1-0"]
[WhiteElo "2544"]
[BlackElo "2594"]
[TimeControl "180+2"]
[EndTime "14:05:37 PDT"]
[Termination "GMMarcinDziuba won by checkmate"]

1. d4 {[%clk 0:02:50.4]} 1... Nf6 {[%clk 0:03:00.5]} 2. c4 {[%clk 0:02:51.4]}
2... e6 {[%clk 0:03:01.6]} 3. Nf3 {[%clk 0:02:52.2]} 3... d5 {[%clk 0:03:01]} 4.
g3 {[%clk 0:02:52.7]} 4... Bb4+ {[%clk 0:03:01.9]} 5. Bd2 {[%clk 0:02:53.1]}
5... Be7 {[%clk 0:03:03.5]} 6. Bg2 {[%clk 0:02:53.9]} 6... O-O {[%clk
0:03:05.1]} 7. O-O {[%clk 0:02:55.4]} 7... Nbd7 {[%clk 0:03:06.6]} 8. Qc2 {[%clk
0:02:49.6]} 8... c6 {[%clk 0:03:06.4]} 9. Rd1 {[%clk 0:02:48.6]} 9... b6 {[%clk
0:03:04.2]} 10. Bf4 {[%clk 0:02:49.6]} 10... a5 {[%clk 0:03:04.4]} 11. Ne5
{[%clk 0:02:50.2]} 11... Bb7 {[%clk 0:03:02.1]} 12. cxd5 {[%clk 0:02:50.3]}
12... cxd5 {[%clk 0:03:04]} 13. Nc6 {[%clk 0:02:51.3]} 13... Bxc6 {[%clk
0:03:05.2]} 14. Qxc6 {[%clk 0:02:52.8]} 14... Rc8 {[%clk 0:03:06.7]} 15. Qb5
{[%clk 0:02:53.2]} 15... Ne8 {[%clk 0:03:07.1]} 16. Nc3 {[%clk 0:02:52.5]} 16...
Rc4 {[%clk 0:02:56.6]} 17. Rac1 {[%clk 0:02:29]} 17... g5 {[%clk 0:02:52.3]} 18.
Be3 {[%clk 0:02:27.5]} 18... Rb4 {[%clk 0:02:49.3]} 19. Qd3 {[%clk 0:02:23.1]}
19... Rxb2 {[%clk 0:02:44.3]} 20. Bd2 {[%clk 0:02:14.7]} 20... f5 {[%clk
0:02:21.2]} 21. Nxd5 {[%clk 0:01:36.9]} 21... exd5 {[%clk 0:02:11.8]} 22. Bxd5+
{[%clk 0:01:37.2]} 22... Kh8 {[%clk 0:02:12.7]} 23. Bc3 {[%clk 0:01:38.4]} 23...
Ndf6 {[%clk 0:01:51.1]} 24. Be6 {[%clk 0:01:33.6]} 24... Rb4 {[%clk 0:01:45.2]}
25. Bxb4 {[%clk 0:01:00.4]} 25... Bxb4 {[%clk 0:01:38.4]} 26. Bxf5 {[%clk
0:01:00.7]} 26... Qe7 {[%clk 0:01:32.3]} 27. a3 {[%clk 0:01:00.8]} 27... Bxa3
{[%clk 0:01:32]} 28. Rc6 {[%clk 0:00:58.1]} 28... Ng7 {[%clk 0:01:23.9]} 29. Bh3
{[%clk 0:00:54.6]} 29... Bb4 {[%clk 0:00:39.5]} 30. Bg2 {[%clk 0:00:41.2]} 30...
Qd8 {[%clk 0:00:22.8]} 31. h3 {[%clk 0:00:38.9]} 31... Qb8 {[%clk 0:00:14.6]}
32. e4 {[%clk 0:00:38.8]} 32... Be7 {[%clk 0:00:12.7]} 33. e5 {[%clk 0:00:39.3]}
33... Nd7 {[%clk 0:00:13.1]} 34. Rh6 {[%clk 0:00:26.8]} 34... Nf5 {[%clk
0:00:13.6]} 35. Rh5 {[%clk 0:00:28.2]} 35... Qe8 {[%clk 0:00:11]} 36. g4 {[%clk
0:00:27]} 36... a4 {[%clk 0:00:07.5]} 37. Be4 {[%clk 0:00:23.6]} 37... Nh4
{[%clk 0:00:04.3]} 38. Rxh7+ {[%clk 0:00:22.1]} 38... Kg8 {[%clk 0:00:05.4]} 39.
Bd5+ {[%clk 0:00:23.4]} 39... Rf7 {[%clk 0:00:05.7]} 40. Bxf7+ {[%clk
0:00:23.2]} 40... Qxf7 {[%clk 0:00:07.6]} 41. Rxf7 {[%clk 0:00:24.2]} 41... Kxf7
{[%clk 0:00:09.5]} 42. Qc4+ {[%clk 0:00:19.2]} 42... Kg7 {[%clk 0:00:10.7]} 43.
Qxa4 {[%clk 0:00:20.1]} 43... Nf8 {[%clk 0:00:11.6]} 44. d5 {[%clk 0:00:19.8]}
44... Nf3+ {[%clk 0:00:12.5]} 45. Kh1 {[%clk 0:00:21.3]} 45... Nxe5 {[%clk
0:00:14.4]} 46. d6 {[%clk 0:00:22.8]} 46... Bf6 {[%clk 0:00:15.1]} 47. d7 {[%clk
0:00:24.3]} 47... Nf7 {[%clk 0:00:16.3]} 48. Re1 {[%clk 0:00:22.3]} 48... b5
{[%clk 0:00:12.5]} 49. Qxb5 {[%clk 0:00:22.7]} 49... Ng6 {[%clk 0:00:12.1]} 50.
Re8 {[%clk 0:00:22.7]} 50... Nge5 {[%clk 0:00:12.8]} 51. Qd5 {[%clk 0:00:22.6]}
51... Ng6 {[%clk 0:00:13.4]} 52. Re6 {[%clk 0:00:19.7]} 52... Nf4 {[%clk
0:00:13.8]} 53. Qf5 {[%clk 0:00:16.7]} 53... Nxe6 {[%clk 0:00:14.7]} 54. Qxe6
{[%clk 0:00:18.6]} 54... Nd8 {[%clk 0:00:16.5]} 55. Qe8 {[%clk 0:00:19.4]} 55...
Nf7 {[%clk 0:00:18]} 56. h4 {[%clk 0:00:18.5]} 56... gxh4 {[%clk 0:00:18.3]} 57.
f4 {[%clk 0:00:19.6]} 57... Bd8 {[%clk 0:00:18.8]} 58. Kg2 {[%clk 0:00:19]}
58... Bc7 {[%clk 0:00:20]} 59. g5 {[%clk 0:00:18.2]} 59... Bxf4 {[%clk
0:00:20.7]} 60. d8=Q {[%clk 0:00:18.1]} 60... Nxd8 {[%clk 0:00:21.3]} 61. Qxd8
{[%clk 0:00:19.4]} 61... Be5 {[%clk 0:00:23.2]} 62. Qe7+ {[%clk 0:00:20.6]}
62... Kg6 {[%clk 0:00:24.4]} 63. Qxe5 {[%clk 0:00:22.5]} 63... Kh5 {[%clk
0:00:26.3]} 64. Kh3 {[%clk 0:00:23.2]} 64... Kg6 {[%clk 0:00:26.9]} 65. Qf6+
{[%clk 0:00:24.5]} 65... Kh7 {[%clk 0:00:28.8]} 66. g6+ {[%clk 0:00:26]} 66...
Kg8 {[%clk 0:00:30.7]} 67. Qf7+ {[%clk 0:00:27.1]} 67... Kh8 {[%clk 0:00:32.6]}
68. Qf8# {[%clk 0:00:28.7]} 1-0